bitfinex/quotes_BTCUSD_20230115
["timestamp","ask_amount","ask_price","bid_price","bid_amount"]
[1673799532337,6e-05,20873.0,20872.0,0.46720526]
[1673799532582,0.00106,20873.0,20872.0,0.46720526]
[1673799532831,0.00106,20873.0,20871.0,0.085]
[1673799533066,0.35770335,20873.0,20871.0,0.085]
[1673799533312,0.35670335,20873.0,20870.0,0.479147]
[1673799533582,6e-05,20873.0,20868.0,0.479189]
[1673799533848,0.24572077,20873.0,20868.0,0.479189]
[1673799534096,0.24572077,20873.0,20866.0,0.35435412]
[1673799534097,0.1279,20871.0,20866.0,0.479233]
[1673799534359,0.1279,20871.0,20865.0,0.88403793]
[1673799534360,0.54864698,20871.0,20865.0,0.88403793]
[1673799534621,0.54864698,20871.0,20865.0,0.40477393]
[1673799534845,2.31012305,20871.0,20866.0,0.44647631]
[1673799535120,1.88937607,20871.0,20868.0,0.085]
[1673799535335,1.88937607,20871.0,20866.0,0.63720226]
[1673799535581,1.6426,20871.0,20867.0,0.42549964]
[1673799535825,1.6426,20871.0,20867.0,0.61622559]
[1673799536319,1.6426,20871.0,20867.0,0.42549964]
[1673799536564,1.6426,20871.0,20867.0,0.42049964]
[1673799536565,1.8636,20871.0,20867.0,0.42049964]
[1673799536803,0.48489371,20870.0,20867.0,0.50449964]
[1673799537277,0.48489371,20870.0,20867.0,0.084]
[1673799537517,2.343797,20871.0,20867.0,0.084]
[1673799537758,2.343797,20871.0,20867.0,0.19072595]
[1673799537759,0.40323755,20870.0,20867.0,0.19072595]
[1673799538001,0.001,20870.0,20867.0,0.19072595]
[1673799538272,0.001,20870.0,20866.0,1.07237937]
[1673799538516,0.38656669,20870.0,20867.0,0.078]
[1673799539282,0.38656669,20870.0,20866.0,0.93065869]
[1673799539283,0.38556669,20870.0,20866.0,0.93065869]
[1673799539519,0.38656669,20870.0,20867.0,1.01998711]
[1673799540036,0.38556669,20870.0,20867.0,0.94198711]
[1673799540295,0.38656669,20870.0,20867.0,0.46276311]
[1673799540542,0.38556669,20870.0,20867.0,0.46276311]
[1673799541111,0.38656669,20870.0,20867.0,0.54076311]
[1673799542104,0.45725279,20869.0,20867.0,0.54076311]
[1673799542893,0.22006,20871.0,20868.0,0.19072595]
[1673799543131,0.22006,20871.0,20869.0,0.958358]
[1673799543389,6e-05,20870.0,20869.0,0.958358]
[1673799543628,0.21006,20871.0,20869.0,0.95847939]
[1673799543903,0.43182434,20870.0,20867.0,0.479216]
[1673799544139,0.43182434,20870.0,20869.0,0.078]
[1673799544370,0.43182434,20870.0,20867.0,0.92741746]
[1673799544609,0.43182434,20870.0,20869.0,0.078]
[1673799545329,0.75237534,20870.0,20869.0,0.078]
[1673799545573,0.75237534,20870.0,20866.0,0.40994131]
[1673799545839,0.75237534,20870.0,20864.0,0.479278]
[1673799545840,0.209964,20869.0,20864.0,0.49503783]
[1673799546138,0.320551,20868.0,20864.0,0.49503783]
[1673799546389,0.479179,20869.0,20864.0,0.97432883]
[1673799546644,0.479179,20869.0,20866.0,0.009]
[1673799546885,0.320551,20868.0,20864.0,1.16505478]
[1673799547150,0.71097389,20867.0,20864.0,0.558291]
[1673799547383,0.50100989,20867.0,20864.0,0.558291]
[1673799547638,0.50100989,20867.0,20865.0,0.48063911]
[1673799547919,0.41847151,20870.0,20865.0,1.14925695]
[1673799548162,0.4928191,20870.0,20866.0,0.19072595]
[1673799548449,1.63,20871.0,20867.0,1.14916795]
[1673799548647,2.06244254,20871.0,20868.0,0.19072595]
[1673799548903,0.45659852,20870.0,20868.0,0.19072595]
[1673799549140,0.35610215,20869.0,20867.0,0.958442]
[1673799549393,0.35610215,20869.0,20867.0,0.962442]
[1673799549637,2.04931757,20871.0,20867.0,1.42910231]
[1673799549876,0.679107,20873.0,20868.0,0.73641647]
[1673799550122,0.43655292,20872.0,20869.0,0.19072595]
[1673799550365,0.43655292,20872.0,20869.0,1.14905595]
[1673799550606,0.43655292,20872.0,20869.0,0.95833]
[1673799550847,0.43655292,20872.0,20869.0,0.479173]
[1673799551344,1.646,20874.0,20869.0,0.958352]
[1673799551598,2.1154299,20874.0,20870.0,0.19072595]
[1673799551840,0.35274406,20873.0,20870.0,0.66987195]
[1673799552089,0.35964326,20876.0,20870.0,1.29073163]
[1673799552360,0.43880006,20876.0,20871.0,0.6525827]
[1673799552611,0.43880006,20876.0,20872.0,1.14892495]
[1673799552879,0.43880006,20876.0,20872.0,0.958199]
[1673799553620,0.43880006,20876.0,20872.0,1.14892495]
[1673799554610,0.995,20877.0,20873.0,0.49072595]
[1673799554850,0.995,20877.0,20874.0,1.43718]
[1673799555093,0.995,20877.0,20875.0,0.5]
[1673799555338,0.995,20877.0,20876.0,0.958036]
[1673799555586,0.995,20877.0,20876.0,1.258036]
[1673799555839,0.995,20877.0,20876.0,1.586536]
[1673799556146,0.55283654,20877.0,20876.0,1.386536]
[1673799556882,0.08714341,20877.0,20876.0,2.52466732]
[1673799557133,0.01913332,20877.0,20876.0,3.49361166]
[1673799557388,0.01913332,20877.0,20876.0,4.59633282]
[1673799557642,0.00468437,20880.0,20877.0,0.2]
[1673799557883,0.00468437,20880.0,20879.0,0.61156158]
[1673799558129,0.00468437,20880.0,20879.0,0.90745]
[1673799558870,0.00468437,20880.0,20879.0,0.56995]
[1673799559115,0.00468437,20880.0,20879.0,0.26895]
[1673799559603,0.00468437,20880.0,20879.0,0.56895]
[1673799560110,0.00468437,20880.0,20879.0,0.66095]
[1673799560346,0.00468437,20880.0,20879.0,1.10804341]
[1673799560591,0.00468437,20880.0,20879.0,1.06985765]
[1673799560831,0.09990437,20880.0,20879.0,0.76985765]
[1673799561103,0.54761432,20880.0,20879.0,0.092]
[1673799561598,0.2,20879.0,20877.0,0.01575455]
[1673799561843,0.09990437,20880.0,20877.0,0.01575455]
[1673799561844,0.320551,20878.0,20877.0,0.01575455]
[1673799562846,0.91720064,20878.0,20877.0,0.01575455]
[1673799563093,0.71720064,20878.0,20877.0,0.01575455]
[1673799563601,0.80820064,20878.0,20877.0,0.01575455]
[1673799563860,0.320551,20878.0,20877.0,0.01575455]
[1673799564117,0.410551,20878.0,20877.0,0.01575455]
[1673799564345,0.320551,20878.0,20877.0,0.01575455]
[1673799564863,0.448551,20878.0,20877.0,0.01575455]
[1673799565100,0.495551,20878.0,20877.0,0.01575455]
[1673799565343,0.97508396,20878.0,20877.0,0.01575455]
[1673799565584,1.47508396,20878.0,20877.0,0.01575455]
[1673799565833,2.07958565,20878.0,20868.0,0.92933317]
[1673799566082,0.1285,20874.0,20869.0,0.40588259]
[1673799566331,0.80008396,20873.0,20869.0,0.479179]
[1673799566590,0.1285,20871.0,20868.0,0.46935146]
[1673799566834,0.1285,20874.0,20868.0,0.46935146]
[1673799566835,1.5239,20873.0,20871.0,0.40349596]
[1673799567596,1.5239,20873.0,20871.0,0.88262696]
[1673799567845,1.5339,20873.0,20871.0,0.40349596]
[1673799568083,1.5239,20873.0,20871.0,0.40349596]
[1673799568581,1.5329,20873.0,20869.0,0.479173]
[1673799568835,1.94261791,20873.0,20870.0,0.43901731]
[1673799569323,2.15261791,20873.0,20870.0,0.43901731]
[1673799569567,0.44227859,20872.0,20870.0,0.43901731]
[1673799570322,0.44227859,20872.0,20869.0,0.4680376]
[1673799570575,0.320551,20871.0,20869.0,0.4680376]
[1673799570807,0.45596559,20871.0,20867.0,0.97615098]
[1673799571272,0.45596559,20871.0,20868.0,0.3642379]
[1673799571534,0.009,20872.0,20869.0,1.14908395]
[1673799571788,0.009,20872.0,20870.0,0.5]
[1673799572041,0.009,20872.0,20871.0,0.958266]
[1673799572323,0.009,20872.0,20871.0,1.258266]
[1673799572586,0.47404622,20876.0,20871.0,1.258266]
[1673799572881,0.47404622,20876.0,20872.0,0.19072595]
[1673799573149,0.47404622,20876.0,20873.0,0.479083]
[1673799573403,1.6574,20877.0,20874.0,0.19072595]
[1673799573675,1.32208437,20880.0,20875.0,0.39072595]
[1673799573945,1.66208437,20880.0,20876.0,0.66973995]
[1673799574201,1.66208437,20880.0,20877.0,0.19072595]
[1673799574202,2.07662458,20880.0,20877.0,0.19072595]
[1673799574457,2.07662458,20880.0,20877.0,0.66970395]
[1673799575013,0.01468437,20880.0,20877.0,1.14869895]
[1673799575265,0.01468437,20880.0,20877.0,0.957973]
[1673799575792,0.00468437,20880.0,20877.0,0.957973]
[1673799576053,0.01368437,20880.0,20877.0,0.957973]
[1673799576453,0.00468437,20880.0,20878.0,0.3]
[1673799576455,0.01368437,20880.0,20878.0,0.66954261]
[1673799576677,0.01368437,20880.0,20879.0,0.9579]
[1673799576907,0.00444966,20881.0,20879.0,0.9579]
[1673799576908,0.00444966,20881.0,20879.0,0.9322691]
[1673799577351,0.008,20880.0,20879.0,0.9322691]
[1673799577627,0.44543765,20881.0,20879.0,0.9322691]
[1673799577821,0.44543765,20881.0,20878.0,0.92956729]
[1673799578714,0.01244966,20881.0,20879.0,0.39277199]
[1673799578984,0.00444966,20881.0,20880.0,0.0001114]
[1673799579200,0.01244966,20881.0,20879.0,0.86371299]
[1673799579426,0.01244966,20881.0,20879.0,1.34264799]
[1673799579650,0.01244966,20881.0,20880.0,0.3]
[1673799579884,0.00444966,20881.0,20880.0,1.57687995]
[1673799580103,0.00439743,20882.0,20881.0,0.08978749]
[1673799580331,0.00439743,20882.0,20881.0,1.24759549]
[1673799580563,0.00439743,20882.0,20881.0,1.54759549]
[1673799580781,0.00439743,20882.0,20881.0,1.34759549]
[1673799581451,0.00439743,20882.0,20881.0,1.51627849]
[1673799581900,0.00539743,20882.0,20881.0,1.60127849]
[1673799582145,0.00439743,20882.0,20881.0,1.51627849]
[1673799582314,0.00539743,20882.0,20881.0,1.60027849]
[1673799582565,0.00539743,20882.0,20881.0,1.51141849]
[1673799583061,0.00439743,20882.0,20881.0,1.42741849]
[1673799583296,0.00539743,20882.0,20881.0,1.81141849]
[1673799584096,0.00539743,20882.0,20881.0,1.48346701]
[1673799584376,0.00539743,20882.0,20881.0,1.69946701]
[1673799584612,0.00539743,20882.0,20881.0,1.25873549]
[1673799584613,0.00439743,20882.0,20881.0,1.25873549]
[1673799584854,0.00566743,20882.0,20881.0,1.76332393]
[1673799585083,0.00566743,20882.0,20881.0,1.34273549]
[1673799585576,0.00566743,20882.0,20881.0,1.67013549]
[1673799585829,0.00566743,20882.0,20881.0,1.70163884]
[1673799586079,0.00444966,20885.0,20882.0,0.00117148]
[1673799586317,0.00444966,20885.0,20883.0,1.9817741]
[1673799586630,0.00444966,20885.0,20884.0,0.64178966]
[1673799586807,0.00444966,20885.0,20884.0,1.85475966]
[1673799587050,0.00444966,20885.0,20884.0,1.71297]
[1673799587297,0.00444966,20885.0,20884.0,1.61637335]
[1673799587298,0.00544966,20885.0,20884.0,1.61637335]
[1673799587785,0.00544966,20885.0,20884.0,1.57167335]
[1673799588825,0.00444966,20885.0,20884.0,1.34017]
[1673799589065,0.00444966,20885.0,20884.0,1.54017]
[1673799589558,0.00444966,20885.0,20884.0,1.63217]
[1673799590103,0.00533942,20889.0,20888.0,0.00341084]
[1673799590385,0.00533942,20889.0,20888.0,1.84672579]
[1673799590386,0.00033942,20889.0,20888.0,1.84672579]
[1673799590590,0.00033942,20889.0,20888.0,1.95599984]
[1673799591823,0.00033942,20889.0,20888.0,2.08449984]
[1673799592075,0.00033942,20889.0,20888.0,2.56170153]
[1673799592325,0.00033942,20889.0,20888.0,2.43939757]
[1673799592577,0.00033942,20889.0,20888.0,2.52148027]
[1673799592815,0.00033942,20889.0,20888.0,2.31648027]
[1673799593057,0.00033942,20889.0,20888.0,1.98798027]
[1673799594047,0.00033942,20889.0,20888.0,2.06235226]
[1673799594301,0.00033942,20889.0,20888.0,1.93371037]
[1673799594556,0.00033942,20889.0,20888.0,1.9338253]
[1673799594812,0.00033942,20889.0,20888.0,1.83871037]
[1673799595061,0.00033942,20889.0,20888.0,1.93071037]
[1673799595553,0.00033942,20889.0,20888.0,1.9308253]
[1673799595805,0.00033942,20889.0,20888.0,1.75898072]
[1673799596054,0.00577302,20891.0,20889.0,0.20008718]
[1673799596305,0.00577302,20891.0,20890.0,1.563891]
[1673799596547,0.00577302,20891.0,20890.0,1.863891]
[1673799596810,0.00577302,20894.0,20893.0,0.00298108]
[1673799597056,0.00577302,20894.0,20893.0,0.48161008]
[1673799598568,0.00577302,20894.0,20893.0,0.09598108]
[1673799598802,0.00577302,20894.0,20893.0,0.00298108]
[1673799599075,0.00577302,20894.0,20893.0,0.09598108]
[1673799600042,0.00645302,20894.0,20893.0,0.09598108]
[1673799600283,0.36118453,20894.0,20893.0,0.09598108]
[1673799601034,0.36118453,20894.0,20893.0,0.09611074]
[1673799601278,0.00597402,20894.0,20893.0,0.00298108]
[1673799601526,0.00597402,20894.0,20893.0,0.09598108]
[1673799601823,0.36968321,20894.0,20893.0,0.09598108]
[1673799602306,0.36968321,20894.0,20893.0,0.00298108]
[1673799602546,0.36968321,20894.0,20893.0,0.09598108]
[1673799602795,0.36968321,20894.0,20893.0,0.00311074]
[1673799603048,0.36968321,20894.0,20893.0,0.09598108]
[1673799603773,0.36968321,20894.0,20893.0,0.09611074]
[1673799605001,0.36968321,20894.0,20893.0,0.10461074]
[1673799605239,0.36968321,20894.0,20893.0,0.10448108]
[1673799606754,0.00597402,20894.0,20893.0,0.10448108]
[1673799607458,0.38348262,20894.0,20893.0,0.10448108]
[1673799608197,0.00597402,20894.0,20893.0,0.09598108]
[1673799608460,1.59631702,20894.0,20893.0,8.108e-05]
[1673799608705,1.59631702,20894.0,20889.0,8.718e-05]
[1673799608957,0.78388248,20893.0,20889.0,8.718e-05]
[1673799609208,0.320551,20892.0,20889.0,8.718e-05]
[1673799609456,0.20496,20891.0,20889.0,8.718e-05]
[1673799609697,0.927148,20890.0,20889.0,8.718e-05]
[1673799609952,1.33879511,20890.0,20889.0,8.718e-05]
[1673799610215,0.76088654,20890.0,20889.0,8.718e-05]
[1673799611188,0.44033554,20890.0,20889.0,0.00045096]
[1673799611429,0.44333554,20890.0,20889.0,0.00858718]
[1673799611682,0.44033554,20890.0,20889.0,0.00858718]
[1673799611925,0.77091254,20890.0,20889.0,0.00858718]
[1673799612169,0.77091254,20890.0,20889.0,8.718e-05]
[1673799612170,0.76091254,20890.0,20889.0,8.718e-05]
[1673799612436,1.32462275,20890.0,20889.0,8.718e-05]
[1673799612696,1.23960954,20890.0,20889.0,8.718e-05]
[1673799612932,1.277971,20890.0,20889.0,8.718e-05]
[1673799613181,1.406471,20890.0,20889.0,8.718e-05]
[1673799613673,1.89479843,20890.0,20889.0,8.718e-05]
[1673799613917,1.81992776,20890.0,20889.0,8.718e-05]
[1673799614417,0.50345676,20890.0,20889.0,0.00858718]
[1673799614662,0.09,20890.0,20889.0,0.00858718]
[1673799614910,0.09,20890.0,20889.0,0.58998696]
[1673799615418,0.09116,20890.0,20889.0,0.88998696]
[1673799615655,0.00116,20890.0,20889.0,0.39744718]
[1673799615920,0.07216,20890.0,20889.0,0.73091673]
[1673799616169,0.07058743,20890.0,20889.0,2.00016449]
[1673799616424,0.00529402,20894.0,20889.0,1.64390291]
[1673799616674,0.00529402,20894.0,20891.0,0.1278]
[1673799616952,0.00529402,20894.0,20892.0,0.96690378]
[1673799617226,0.00529402,20894.0,20892.0,1.16690378]
[1673799617474,0.00529402,20894.0,20892.0,0.96690378]
[1673799618220,0.01329402,20894.0,20893.0,0.46536523]
[1673799618472,0.01329402,20894.0,20893.0,0.0085]
[1673799618473,0.09974402,20894.0,20893.0,0.0085]
[1673799618967,0.00529402,20894.0,20893.0,0.3683202]
[1673799619453,0.01329402,20894.0,20893.0,0.3783202]
[1673799620196,1.6377,20897.0,20894.0,0.00704196]
[1673799620444,1.6377,20897.0,20895.0,0.965666]
[1673799620705,0.38392015,20896.0,20894.0,0.14942592]
[1673799620941,1.6377,20897.0,20894.0,0.00704196]
[1673799620942,0.45864804,20895.0,20894.0,0.00704196]
[1673799622194,0.46564804,20895.0,20894.0,0.02404196]
[1673799622435,0.45864804,20895.0,20894.0,0.00704196]
[1673799622912,0.320577,20895.0,20894.0,0.00704196]
[1673799623155,0.649077,20895.0,20894.0,0.00704196]
[1673799623398,0.652077,20895.0,20894.0,0.01904196]
[1673799623641,1.12766,20895.0,20894.0,0.00704196]
[1673799623884,1.13566,20895.0,20894.0,0.02204196]
[1673799624128,0.92766,20895.0,20894.0,0.00704196]
[1673799624416,0.99266,20895.0,20894.0,0.00904196]
[1673799624662,0.92766,20895.0,20894.0,0.00704196]
[1673799624912,1.00266,20895.0,20894.0,0.00904196]
[1673799625156,1.00266,20895.0,20890.0,0.14238396]
[1673799625157,2.85742985,20895.0,20890.0,0.14238396]
[1673799625421,0.1285,20892.0,20889.0,8.718e-05]
[1673799625678,0.320577,20891.0,20889.0,8.718e-05]
[1673799625948,0.2,20891.0,20889.0,8.718e-05]
[1673799626195,0.40953401,20890.0,20889.0,8.718e-05]
[1673799626449,2.11299675,20892.0,20889.0,0.01308718]
[1673799626687,2.11299675,20892.0,20889.0,0.5843748]
[1673799626948,2.11299675,20892.0,20890.0,0.0085]
[1673799627163,2.10499675,20892.0,20890.0,0.0085]
[1673799627403,2.10499675,20892.0,20891.0,0.00058455]
[1673799627656,2.10499675,20892.0,20890.0,0.48011348]
[1673799627910,2.11299675,20892.0,20890.0,0.49311348]
[1673799628242,2.11299675,20892.0,20890.0,0.63549744]
[1673799628433,2.11299675,20892.0,20891.0,0.00058455]
[1673799628683,2.10499675,20892.0,20891.0,0.00058455]
[1673799628931,2.10499675,20892.0,20890.0,0.62249744]
[1673799629170,2.10499675,20892.0,20890.0,0.0085]
[1673799629171,2.225059,20892.0,20890.0,0.0085]
[1673799629415,0.320577,20891.0,20889.0,8.718e-05]
[1673799629667,0.320577,20891.0,20887.0,0.3558739]
[1673799629668,0.47868,20891.0,20887.0,0.3558739]
[1673799629916,0.47868,20891.0,20888.0,0.00058462]
[1673799630162,0.47868,20891.0,20890.0,0.013]
[1673799630404,0.47868,20891.0,20887.0,0.85482152]
[1673799630648,0.48668,20891.0,20887.0,0.86782152]
[1673799630898,2.69062509,20892.0,20888.0,0.0085]
[1673799631148,0.008,20891.0,20890.0,0.013]
[1673799631395,0.008,20891.0,20890.0,0.01448312]
[1673799631630,2.06144873,20892.0,20890.0,0.00148312]
[1673799631880,0.34769203,20896.0,20890.0,0.00148312]
[1673799631881,0.1277,20896.0,20891.0,0.19072595]
[1673799632190,0.35226019,20896.0,20892.0,1.15651095]
[1673799632430,0.35226019,20896.0,20893.0,0.19922595]
[1673799632675,0.02572976,20895.0,20894.0,0.19072595]
[1673799632937,0.02572976,20895.0,20894.0,0.487098]
[1673799633450,0.02572976,20895.0,20894.0,0.48783654]
[1673799633671,0.52245541,20895.0,20894.0,0.0155]
[1673799633912,0.47724645,20895.0,20894.0,0.0155]
[1673799634391,0.47724645,20895.0,20894.0,0.01623854]
[1673799634640,0.47024645,20895.0,20894.0,0.0085]
[1673799634900,0.02572976,20895.0,20894.0,0.487106]
[1673799635143,0.02572976,20895.0,20894.0,0.926603]
[1673799635649,0.03372976,20895.0,20894.0,0.92834698]
[1673799635889,0.02572976,20895.0,20894.0,0.92734698]
[1673799636155,0.38745504,20895.0,20894.0,0.0945]
[1673799637378,0.38745504,20895.0,20894.0,0.086]
[1673799638112,0.38745504,20895.0,20894.0,0.0945]
[1673799638347,0.5774452,20895.0,20894.0,0.0945]
[1673799638594,0.8980222,20895.0,20894.0,0.0945]
[1673799638825,0.5774452,20895.0,20894.0,0.0945]
[1673799639084,0.47720169,20888.0,20886.0,0.42781842]
[1673799639368,0.20853,20891.0,20879.0,0.48141532]
[1673799639369,0.12495294,20886.0,20879.0,0.48141532]
[1673799639700,0.14304203,20883.0,20878.0,0.36687599]
[1673799639931,1.30553675,20882.0,20878.0,0.36687599]
[1673799640185,0.1285,20879.0,20878.0,0.36687599]
[1673799640431,1.43501824,20879.0,20875.0,0.47191579]
[1673799640685,0.1285,20876.0,20875.0,0.47191579]
[1673799640986,1.4349794,20876.0,20875.0,0.01691895]
[1673799641192,1.56273307,20876.0,20875.0,0.01691895]
[1673799642206,1.47691687,20876.0,20875.0,0.01691895]
[1673799642444,0.447777,20876.0,20875.0,0.01691895]
[1673799642694,0.447777,20876.0,20875.0,0.38835136]
[1673799642935,0.538777,20876.0,20875.0,0.01691895]
[1673799643186,0.647777,20876.0,20875.0,0.01691895]
[1673799643432,0.447777,20876.0,20875.0,0.01691895]
[1673799643684,0.538777,20876.0,20875.0,0.01691895]
[1673799643935,0.92134474,20876.0,20875.0,0.01691895]
[1673799644173,1.01234474,20876.0,20875.0,0.01691895]
[1673799644422,0.538777,20876.0,20875.0,0.01769846]
[1673799644675,0.411577,20876.0,20875.0,0.39750841]
[1673799644916,0.411577,20876.0,20875.0,0.01691895]
[1673799644917,0.291,20876.0,20875.0,0.01691895]
[1673799645158,0.611577,20876.0,20875.0,0.05728112]
[1673799645416,0.611577,20876.0,20875.0,0.01710895]
[1673799645670,0.091,20876.0,20875.0,0.50180103]
[1673799646159,0.607007,20877.0,20875.0,0.50180103]
[1673799646400,0.2,20879.0,20876.0,0.28808595]
[1673799646652,0.2,20879.0,20877.0,0.52463984]
[1673799646893,0.2,20879.0,20878.0,0.09736]
[1673799647211,0.42501348,20881.0,20878.0,0.09736]
[1673799647477,0.05597839,20877.0,20875.0,0.37382421]
[1673799647727,0.05597839,20877.0,20875.0,0.21710895]
[1673799647728,0.18447839,20877.0,20875.0,0.21710895]
[1673799648005,0.18447839,20877.0,20875.0,0.01710895]
[1673799648281,0.18447839,20877.0,20876.0,0.001]
[1673799648563,0.18447839,20877.0,20875.0,0.01710895]
[1673799648820,0.26047839,20877.0,20876.0,0.43831575]
[1673799649073,0.58105539,20877.0,20876.0,0.43831575]
[1673799649323,0.58105539,20877.0,20875.0,0.01910895]
[1673799649579,0.204934,20876.0,20875.0,0.01910895]
[1673799649831,0.204934,20876.0,20875.0,0.02560895]
[1673799650090,0.05597839,20877.0,20876.0,0.48655582]
[1673799650337,0.13197839,20877.0,20876.0,0.55074926]
[1673799651142,0.05597839,20877.0,20876.0,0.54874926]
[1673799651367,0.05597839,20877.0,20876.0,0.487518]
[1673799651625,0.05597839,20877.0,20876.0,0.576378]
[1673799651873,0.12497839,20877.0,20876.0,0.878378]
[1673799652163,0.05597839,20877.0,20876.0,0.876378]
[1673799652404,0.05597839,20877.0,20876.0,1.358396]
[1673799652405,0.07397839,20877.0,20876.0,1.358396]
[1673799652690,0.07397839,20877.0,20876.0,1.355396]
[1673799652933,0.07997839,20877.0,20876.0,1.377396]
[1673799653707,0.07997839,20877.0,20876.0,1.42066098]
[1673799653959,0.07997839,20877.0,20876.0,0.94164298]
[1673799654201,0.07997839,20877.0,20876.0,0.4627362]
[1673799654458,0.07997839,20877.0,20876.0,0.9417542]
[1673799654954,0.07997839,20877.0,20876.0,0.98864722]
[1673799655706,0.07997839,20877.0,20876.0,1.28864722]
[1673799656975,0.07997839,20877.0,20876.0,1.41236962]
[1673799657257,0.07997839,20877.0,20876.0,1.4122584]
[1673799657729,0.07997839,20877.0,20876.0,0.9247404]
[1673799657967,0.07997839,20877.0,20876.0,0.4457224]
[1673799658973,0.07997839,20877.0,20876.0,1.17076195]
[1673799659228,0.07997839,20877.0,20876.0,1.116336]
[1673799659826,0.07997839,20877.0,20876.0,1.416336]
[1673799660340,0.07997839,20877.0,20876.0,1.616336]
[1673799660618,0.46123376,20886.0,20877.0,0.6405]
[1673799660883,0.00584553,20886.0,20879.0,1.436802]
[1673799661177,0.37158587,20883.0,20880.0,0.19922595]
[1673799661441,0.47506236,20881.0,20880.0,0.487422]
[1673799662703,0.39610369,20882.0,20880.0,0.494422]
[1673799662710,1.5397,20883.0,20880.0,0.973349]
[1673799662973,0.43439831,20883.0,20880.0,0.67814795]
[1673799663236,0.43439831,20883.0,20881.0,0.40698222]
[1673799663493,1.76401553,20886.0,20882.0,0.487381]
[1673799663771,1.54554553,20886.0,20883.0,0.19072595]
[1673799664052,0.36294332,20885.0,20883.0,0.19079079]
[1673799664311,0.36294332,20885.0,20883.0,6.484e-05]
[1673799664568,0.36294332,20885.0,20883.0,0.478852]
[1673799664848,1.54554553,20886.0,20884.0,6.484e-05]
[1673799665096,1.54554553,20886.0,20885.0,0.478812]
[1673799665361,0.00584553,20886.0,20885.0,0.487312]
[1673799665616,0.38336706,20886.0,20885.0,0.487312]
[1673799665882,0.00584553,20886.0,20885.0,0.487312]
[1673799666138,0.00584553,20886.0,20885.0,0.93193331]
[1673799666439,0.00584553,20886.0,20885.0,1.40374531]
[1673799666704,0.00584553,20886.0,20885.0,0.0085]
[1673799666958,0.48691387,20886.0,20885.0,0.0085]
[1673799667461,0.48691387,20886.0,20885.0,0.001]
[1673799667752,0.48691387,20886.0,20884.0,0.0085]
[1673799668022,0.48691387,20886.0,20885.0,0.007]
[1673799668299,0.48691387,20886.0,20885.0,0.0085]
[1673799668559,0.48691387,20886.0,20885.0,0.0095]
[1673799668821,0.48691387,20886.0,20885.0,0.001]
[1673799669097,0.22079553,20886.0,20885.0,0.0085]
[1673799669357,1.04675958,20886.0,20885.0,0.0055]
[1673799670421,0.72618258,20886.0,20885.0,0.008]
[1673799670657,0.38273258,20886.0,20885.0,0.008]
[1673799670896,0.38273258,20886.0,20885.0,0.016]
[1673799671413,0.38273258,20886.0,20885.0,0.86321496]
[1673799671414,0.00584553,20886.0,20885.0,0.86321496]
[1673799671681,0.00584553,20886.0,20885.0,1.32602696]
[1673799671987,0.00584553,20886.0,20885.0,1.33402696]
[1673799672196,0.00584553,20886.0,20885.0,1.62602696]
[1673799672713,0.00584553,20886.0,20885.0,1.26629446]
[1673799673099,0.00584553,20886.0,20885.0,1.76649564]
[1673799673334,0.00584553,20886.0,20885.0,1.75949564]
[1673799673576,0.00584553,20886.0,20885.0,1.79149564]
[1673799673817,0.00584553,20886.0,20885.0,1.45949564]
[1673799674061,0.00584553,20886.0,20885.0,1.55496041]
[1673799674318,0.45536919,20886.0,20884.0,0.39829023]
[1673799674605,0.45536919,20886.0,20885.0,0.094]
[1673799675325,0.45536919,20886.0,20885.0,0.09431]
[1673799675818,0.45536919,20886.0,20885.0,0.00881]
[1673799676089,0.45536919,20886.0,20885.0,0.04081]
[1673799676318,0.36891919,20886.0,20885.0,0.04081]
[1673799677292,0.00584553,20886.0,20885.0,0.04081]
[1673799677536,0.00584553,20886.0,20885.0,1.18915995]
[1673799677778,0.00584553,20886.0,20885.0,1.69675519]
[1673799678024,0.00584553,20886.0,20885.0,1.298434]
[1673799678304,0.00584553,20886.0,20885.0,1.398434]
[1673799678792,0.00584553,20886.0,20885.0,1.366434]
[1673799679544,0.00584553,20886.0,20885.0,1.460434]
[1673799680042,0.00584553,20886.0,20885.0,1.587734]
[1673799680273,0.00584553,20886.0,20885.0,1.494734]
[1673799680524,0.00584553,20886.0,20885.0,1.587734]
[1673799681537,0.00584553,20886.0,20885.0,1.58791622]
[1673799682757,0.00584553,20886.0,20885.0,1.28791622]
[1673799683525,0.00584553,20886.0,20885.0,1.67872457]
[1673799683783,0.00584553,20886.0,20885.0,1.19491622]
[1673799684028,0.00584553,20886.0,20885.0,1.58791622]
[1673799684274,0.00584553,20886.0,20885.0,1.96440917]
[1673799684755,0.00584553,20886.0,20885.0,1.86440917]
[1673799685913,0.00584553,20886.0,20885.0,2.28334386]
[1673799686175,0.89272338,20895.0,20885.0,3.27995377]
[1673799686438,0.89272338,20895.0,20886.0,1.55042304]
[1673799686439,0.41514869,20894.0,20886.0,1.55042304]
[1673799686692,0.47795847,20891.0,20888.0,0.957468]
[1673799686986,0.128,20892.0,20885.0,0.487622]
[1673799687270,0.50364096,20890.0,20886.0,1.40050272]
[1673799687534,0.50364096,20890.0,20886.0,0.92173272]
[1673799687799,0.50364096,20890.0,20887.0,0.43875982]
[1673799688055,0.37534096,20890.0,20887.0,1.39627882]
[1673799688337,1.637,20891.0,20888.0,0.60208362]
[1673799688592,0.22188,20894.0,20888.0,0.60208362]
[1673799688593,0.61186552,20895.0,20889.0,0.37323199]
[1673799688857,0.43484211,20893.0,20890.0,0.19072595]
[1673799689385,0.43484211,20893.0,20891.0,0.478675]
[1673799689945,0.43484211,20893.0,20891.0,0.9095603]
[1673799690200,1.577,20894.0,20892.0,0.46538669]
[1673799690457,1.577,20894.0,20893.0,0.957258]
[1673799691260,0.39187553,20895.0,20893.0,0.957258]
[1673799691528,0.48898521,20894.0,20893.0,0.957258]
[1673799692351,0.00577852,20895.0,20893.0,0.957258]
[1673799692619,0.44455604,20895.0,20893.0,0.957258]
[1673799693867,0.00577852,20895.0,20893.0,1.45724214]
[1673799694397,0.00577852,20895.0,20893.0,0.957258]
[1673799694661,0.00577852,20895.0,20894.0,0.4283]
[1673799694933,0.00577852,20895.0,20894.0,1.385512]
[1673799695210,0.00577852,20895.0,20894.0,1.99101369]
[1673799695487,0.00577852,20895.0,20894.0,2.19101369]
[1673799696012,0.00577852,20895.0,20894.0,2.28501369]
[1673799696262,0.00577852,20895.0,20894.0,2.19101369]
[1673799696528,0.00577852,20895.0,20894.0,2.28401369]
[1673799696804,0.00577852,20895.0,20894.0,1.678512]
[1673799697061,0.00577852,20895.0,20894.0,1.85375127]